[Event "Early-Titled-Tuesday-Blitz-January-30-2024"]
[Site "Chess.com"]
[Date "2024.01.30"]
[Round "8"]
[White "eightbyeightchess"]
[Black "arnash_bauyrzhan"]
[Result "0-1"]
[WhiteElo "2402"]
[BlackElo "2232"]
[TimeControl "180+1"]
[EndTime "9:31:31 PST"]
[Termination "arnash_bauyrzhan won by checkmate"]

1. e4 {[%clk 0:03:00.9]} 1... c5 {[%clk 0:02:59.2]} 2. Nf3 {[%clk 0:03:00.9]}
2... e6 {[%clk 0:02:58.7]} 3. d4 {[%clk 0:03:00.7]} 3... cxd4 {[%clk 0:02:59.3]}
4. Nxd4 {[%clk 0:03:01.6]} 4... a6 {[%clk 0:02:59.1]} 5. Nc3 {[%clk 0:03:02]}
5... Qc7 {[%clk 0:02:58.8]} 6. Bd3 {[%clk 0:03:02.3]} 6... Nf6 {[%clk
0:02:58.3]} 7. O-O {[%clk 0:03:01.7]} 7... Nc6 {[%clk 0:02:58.1]} 8. Nb3 {[%clk
0:03:00.7]} 8... Ne5 {[%clk 0:02:54.9]} 9. f4 {[%clk 0:02:58.5]} 9... Bc5+
{[%clk 0:02:41.5]} 10. Kh1 {[%clk 0:02:58.2]} 10... Nxd3 {[%clk 0:02:16.8]} 11.
cxd3 {[%clk 0:02:56.9]} 11... h5 {[%clk 0:02:15]} 12. Nxc5 {[%clk 0:02:55.5]}
12... Qxc5 {[%clk 0:02:14.4]} 13. d4 {[%clk 0:02:56.1]} 13... Qc4 {[%clk
0:02:10.9]} 14. Be3 {[%clk 0:02:41.6]} 14... d5 {[%clk 0:02:06.3]} 15. Rc1
{[%clk 0:02:39]} 15... Qb4 {[%clk 0:01:33.7]} 16. f5 {[%clk 0:01:28.3]} 16...
dxe4 {[%clk 0:01:25]} 17. fxe6 {[%clk 0:01:27.6]} 17... Bxe6 {[%clk 0:01:21.6]}
18. Rxf6 {[%clk 0:01:27.8]} 18... gxf6 {[%clk 0:01:16.5]} 19. Nxe4 {[%clk
0:01:28.2]} 19... Qe7 {[%clk 0:01:06.1]} 20. Bf4 {[%clk 0:00:53.1]} 20... Bd5
{[%clk 0:00:45]} 21. Nd6+ {[%clk 0:00:52.2]} 21... Kf8 {[%clk 0:00:35.8]} 22.
Qd2 {[%clk 0:00:38]} 22... Rd8 {[%clk 0:00:30.6]} 23. Re1 {[%clk 0:00:35.6]}
23... Qd7 {[%clk 0:00:22.8]} 24. Re3 {[%clk 0:00:13.8]} 24... h4 {[%clk
0:00:16.2]} 25. Kg1 {[%clk 0:00:11.9]} 25... Qg4 {[%clk 0:00:15.8]} 26. h3
{[%clk 0:00:10.3]} 26... Qd7 {[%clk 0:00:08.6]} 27. Re1 {[%clk 0:00:07.3]} 27...
Qc6 {[%clk 0:00:08.2]} 28. Nf5 {[%clk 0:00:05.3]} 28... Qd7 {[%clk 0:00:05.8]}
29. Bh6+ {[%clk 0:00:04.4]} 29... Kg8 {[%clk 0:00:05.4]} 30. Qf4 {[%clk
0:00:04.4]} 30... Qxf5 {[%clk 0:00:01.9]} 31. Qxf5 {[%clk 0:00:03.8]} 31... Rxh6
{[%clk 0:00:02.1]} 32. Re3 {[%clk 0:00:02.4]} 32... Rg6 {[%clk 0:00:02.5]} 33.
Kf1 {[%clk 0:00:01.8]} 33... Bxg2+ {[%clk 0:00:01.7]} 34. Ke1 {[%clk 0:00:01.9]}
34... Rxd4 {[%clk 0:00:01.2]} 35. Re8+ {[%clk 0:00:02.1]} 35... Kg7 {[%clk
0:00:01.1]} 36. Qc8 {[%clk 0:00:02.8]} 36... Rf4 {[%clk 0:00:00.9]} 37. Rg8+
{[%clk 0:00:01.5]} 37... Kh6 {[%clk 0:00:01.6]} 38. Rxg6+ {[%clk 0:00:02.4]}
38... fxg6 {[%clk 0:00:01.7]} 39. Qh8+ {[%clk 0:00:03.1]} 39... Kg5 {[%clk
0:00:01.6]} 40. Qd8 {[%clk 0:00:04]} 40... Rf1+ {[%clk 0:00:01.9]} 41. Ke2
{[%clk 0:00:04.4]} 41... Rf3 {[%clk 0:00:02.5]} 42. Qd2+ {[%clk 0:00:04.4]}
42... Rf4 {[%clk 0:00:02.3]} 43. Qd8 {[%clk 0:00:04.2]} 43... Bf3+ {[%clk
0:00:02.8]} 44. Kf2 {[%clk 0:00:04.1]} 44... Be4+ {[%clk 0:00:03]} 45. Ke3
{[%clk 0:00:04.7]} 45... Bf5 {[%clk 0:00:03.4]} 46. Qd2 {[%clk 0:00:04.7]} 46...
Re4+ {[%clk 0:00:04]} 47. Kf3+ {[%clk 0:00:05.2]} 47... Kh5 {[%clk 0:00:04.2]}
48. Qd8 {[%clk 0:00:05.6]} 48... Rb4 {[%clk 0:00:03.1]} 49. Qg8 {[%clk
0:00:05.4]} 49... Rxb2 {[%clk 0:00:02.9]} 50. Qh8+ {[%clk 0:00:05.8]} 50... Kg5
{[%clk 0:00:03.3]} 51. Qg8 {[%clk 0:00:06.3]} 51... Rh2 {[%clk 0:00:02.9]} 52.
Qd8 {[%clk 0:00:06]} 52... Rxh3+ {[%clk 0:00:03.4]} 53. Kg2 {[%clk 0:00:06.1]}
53... Rg3+ {[%clk 0:00:03.6]} 54. Kf2 {[%clk 0:00:06.7]} 54... Rg4 {[%clk
0:00:04]} 55. Qd2+ {[%clk 0:00:06.2]} 55... Rf4+ {[%clk 0:00:03.8]} 56. Ke3
{[%clk 0:00:06.8]} 56... h3 {[%clk 0:00:04.4]} 57. Qh2 {[%clk 0:00:06.8]} 57...
Rh4 {[%clk 0:00:02.2]} 58. Qg3+ {[%clk 0:00:06.7]} 58... Kh5 {[%clk 0:00:02.6]}
59. Kf3 {[%clk 0:00:06.1]} 59... h2 {[%clk 0:00:03]} 60. Qb8 {[%clk 0:00:04.4]}
60... h1=Q+ {[%clk 0:00:03.3]} 61. Kf2 {[%clk 0:00:05.1]} 61... Rh2+ {[%clk
0:00:03.1]} 62. Kg3 {[%clk 0:00:05.6]} 62... Qg2+ {[%clk 0:00:03.5]} 63. Kf4
{[%clk 0:00:06.3]} 63... Rh4+ {[%clk 0:00:03.7]} 64. Ke3 {[%clk 0:00:07]} 64...
Re4+ {[%clk 0:00:04.2]} 65. Kd3 {[%clk 0:00:07.6]} 65... Qf3+ {[%clk 0:00:04.3]}
66. Kd2 {[%clk 0:00:07.6]} 66... Re2+ {[%clk 0:00:05.2]} 67. Kd1 {[%clk
0:00:08.5]} 67... Qf1# {[%clk 0:00:06.1]} 0-1

[Event "Early-Titled-Tuesday-Blitz-January-30-2024"]
[Site "Chess.com"]
[Date "2024.01.30"]
[Round "8"]
[White "JimDiGrease"]
[Black "mishanick"]
[Result "1/2-1/2"]
[WhiteElo "2952"]
[BlackElo "3143"]
[TimeControl "180+1"]
[EndTime "9:31:33 PST"]
[Termination "Game drawn - insufficient material"]

1. d4 {[%clk 0:03:00.9]} 1... Nf6 {[%clk 0:03:00]} 2. c4 {[%clk 0:03:01.5]} 2...
e6 {[%clk 0:03:00.6]} 3. Nf3 {[%clk 0:03:02.2]} 3... d5 {[%clk 0:03:01.2]} 4.
Qc2 {[%clk 0:03:02.8]} 4... Be7 {[%clk 0:02:59.5]} 5. cxd5 {[%clk 0:03:02.8]}
5... exd5 {[%clk 0:02:59.5]} 6. Bf4 {[%clk 0:03:03.4]} 6... c6 {[%clk
0:02:59.8]} 7. e3 {[%clk 0:03:04]} 7... Nh5 {[%clk 0:02:54.4]} 8. Be5 {[%clk
0:02:44.1]} 8... Nd7 {[%clk 0:02:53.9]} 9. Nc3 {[%clk 0:02:44.6]} 9... O-O
{[%clk 0:02:51.6]} 10. Bd3 {[%clk 0:02:42]} 10... g6 {[%clk 0:02:51.9]} 11. h3
{[%clk 0:02:40.7]} 11... Nxe5 {[%clk 0:02:46.2]} 12. dxe5 {[%clk 0:02:41.6]}
12... Bb4 {[%clk 0:02:35.7]} 13. O-O {[%clk 0:02:40.4]} 13... Qe7 {[%clk
0:02:36.1]} 14. Ne2 {[%clk 0:02:28.5]} 14... f6 {[%clk 0:02:31.6]} 15. exf6
{[%clk 0:02:17.6]} 15... Nxf6 {[%clk 0:02:28.6]} 16. Nc3 {[%clk 0:02:03.4]}
16... Bd7 {[%clk 0:02:17.9]} 17. Rfe1 {[%clk 0:02:03.4]} 17... Rae8 {[%clk
0:02:17.9]} 18. Qb3 {[%clk 0:01:58.7]} 18... Be6 {[%clk 0:02:15.9]} 19. Ne2
{[%clk 0:01:46.4]} 19... Kh8 {[%clk 0:02:05.2]} 20. Rf1 {[%clk 0:01:23.6]} 20...
Ne4 {[%clk 0:02:05.7]} 21. Nfd4 {[%clk 0:01:11.9]} 21... Bg8 {[%clk 0:01:55.5]}
22. Bxe4 {[%clk 0:01:10.5]} 22... dxe4 {[%clk 0:01:55.3]} 23. Qc2 {[%clk
0:01:09.6]} 23... Rd8 {[%clk 0:01:44.7]} 24. Rad1 {[%clk 0:01:06]} 24... Qe5
{[%clk 0:01:33.3]} 25. Ng3 {[%clk 0:00:59.1]} 25... Bd5 {[%clk 0:01:32.5]} 26.
a3 {[%clk 0:00:59]} 26... Bd6 {[%clk 0:01:29.4]} 27. Qc3 {[%clk 0:00:53.4]}
27... Kg8 {[%clk 0:01:20.2]} 28. Nde2 {[%clk 0:00:46.1]} 28... Qe7 {[%clk
0:01:15.6]} 29. Nf4 {[%clk 0:00:37.2]} 29... Bxf4 {[%clk 0:01:13.1]} 30. exf4
{[%clk 0:00:38.1]} 30... Rxf4 {[%clk 0:01:13.3]} 31. Qe3 {[%clk 0:00:38]} 31...
Rdf8 {[%clk 0:00:49.2]} 32. Qxa7 {[%clk 0:00:38]} 32... Bc4 {[%clk 0:00:40.1]}
33. Rfe1 {[%clk 0:00:33.5]} 33... c5 {[%clk 0:00:29.9]} 34. Rd2 {[%clk
0:00:24.4]} 34... h5 {[%clk 0:00:24]} 35. Qa5 {[%clk 0:00:23.9]} 35... h4 {[%clk
0:00:22.4]} 36. Nf1 {[%clk 0:00:14.4]} 36... Bxf1 {[%clk 0:00:21.6]} 37. Rxf1
{[%clk 0:00:11.8]} 37... e3 {[%clk 0:00:22.1]} 38. Re2 {[%clk 0:00:12]} 38...
Rxf2 {[%clk 0:00:19.1]} 39. Rfxf2 {[%clk 0:00:11.8]} 39... exf2+ {[%clk
0:00:14.3]} 40. Rxf2 {[%clk 0:00:12.7]} 40... Qe3 {[%clk 0:00:14.3]} 41. Qd2
{[%clk 0:00:12.1]} 41... Qxd2 {[%clk 0:00:03.6]} 42. Rxd2 {[%clk 0:00:12.5]}
42... b5 {[%clk 0:00:04.2]} 43. Rd5 {[%clk 0:00:11.9]} 43... Rc8 {[%clk
0:00:04.4]} 44. Kf2 {[%clk 0:00:12.1]} 44... Kf7 {[%clk 0:00:04.7]} 45. Rg5
{[%clk 0:00:10.9]} 45... Kf6 {[%clk 0:00:04.8]} 46. Rg4 {[%clk 0:00:11.6]} 46...
g5 {[%clk 0:00:05.2]} 47. Ke2 {[%clk 0:00:12.1]} 47... Re8+ {[%clk 0:00:05.2]}
48. Kd2 {[%clk 0:00:12.5]} 48... Kf5 {[%clk 0:00:03.8]} 49. a4 {[%clk
0:00:11.5]} 49... bxa4 {[%clk 0:00:03.2]} 50. Rxa4 {[%clk 0:00:12.4]} 50... Re4
{[%clk 0:00:03.6]} 51. Ra5 {[%clk 0:00:09.3]} 51... Re5 {[%clk 0:00:03.7]} 52.
Ra4 {[%clk 0:00:09.5]} 52... Re4 {[%clk 0:00:03.5]} 53. Ra5 {[%clk 0:00:09.9]}
53... Rd4+ {[%clk 0:00:02.9]} 54. Kc3 {[%clk 0:00:05.9]} 54... Rd5 {[%clk
0:00:03.5]} 55. b3 {[%clk 0:00:03.4]} 55... Kf4 {[%clk 0:00:03.6]} 56. Ra4+
{[%clk 0:00:03.8]} 56... Ke3 {[%clk 0:00:03.4]} 57. Rg4 {[%clk 0:00:04.2]} 57...
Rf5 {[%clk 0:00:03.8]} 58. Kc4 {[%clk 0:00:04.2]} 58... Kf2 {[%clk 0:00:04.3]}
59. Kc3 {[%clk 0:00:04.1]} 59... Kf1 {[%clk 0:00:02.4]} 60. b4 {[%clk
0:00:02.5]} 60... cxb4+ {[%clk 0:00:02.5]} 61. Kb3 {[%clk 0:00:03.2]} 61... Kf2
{[%clk 0:00:02.7]} 62. Ka4 {[%clk 0:00:03]} 62... Ke2 {[%clk 0:00:02.4]} 63. Kb3
{[%clk 0:00:03.6]} 63... Ke3 {[%clk 0:00:03]} 64. Ka4 {[%clk 0:00:04.2]} 64...
Kd3 {[%clk 0:00:03.5]} 65. Kb3 {[%clk 0:00:04.8]} 65... Kd2 {[%clk 0:00:04.2]}
66. Rxb4 {[%clk 0:00:03.4]} 66... Rf4 {[%clk 0:00:03.5]} 67. Rxf4 {[%clk
0:00:02.7]} 67... gxf4 {[%clk 0:00:04.4]} 68. Kc4 {[%clk 0:00:03.4]} 68... Ke3
{[%clk 0:00:04.9]} 69. Kd5 {[%clk 0:00:04]} 69... f3 {[%clk 0:00:03.1]} 70. gxf3
{[%clk 0:00:04.3]} 70... Kxf3 {[%clk 0:00:04]} 71. Kd4 {[%clk 0:00:05.1]} 71...
Kg2 {[%clk 0:00:03.3]} 72. Ke3 {[%clk 0:00:06]} 72... Kg3 {[%clk 0:00:03.4]} 73.
Ke2 {[%clk 0:00:06.2]} 73... Kxh3 {[%clk 0:00:04.3]} 74. Kf1 {[%clk 0:00:07.1]}
74... Kh2 {[%clk 0:00:05.2]} 75. Kf2 {[%clk 0:00:07.7]} 75... h3 {[%clk
0:00:06]} 76. Kf1 {[%clk 0:00:08.5]} 76... Kg3 {[%clk 0:00:06.9]} 77. Kg1 {[%clk
0:00:09.3]} 77... h2+ {[%clk 0:00:07.8]} 78. Kh1 {[%clk 0:00:10.2]} 78... Kf2
{[%clk 0:00:08.7]} 79. Kxh2 {[%clk 0:00:10.6]} 1/2-1/2

[Event "Early-Titled-Tuesday-Blitz-January-30-2024"]
[Site "Chess.com"]
[Date "2024.01.30"]
[Round "8"]
[White "Aygehovit1992"]
[Black "sjoerd893"]
[Result "1/2-1/2"]
[WhiteElo "2686"]
[BlackElo "2519"]
[TimeControl "180+1"]
[EndTime "9:31:35 PST"]
[Termination "Game drawn by repetition"]

1. e4 {[%clk 0:02:56.7]} 1... c5 {[%clk 0:02:59.9]} 2. Nf3 {[%clk 0:02:55.5]}
2... Nc6 {[%clk 0:03:00.1]} 3. Nc3 {[%clk 0:02:54.9]} 3... g6 {[%clk 0:02:58.6]}
4. Bc4 {[%clk 0:02:53.3]} 4... Bg7 {[%clk 0:02:58.3]} 5. h4 {[%clk 0:02:53.4]}
5... Nf6 {[%clk 0:02:57.2]} 6. d3 {[%clk 0:02:50]} 6... d6 {[%clk 0:02:53.8]} 7.
Be3 {[%clk 0:02:43.2]} 7... Bg4 {[%clk 0:02:48.3]} 8. Qd2 {[%clk 0:02:43.1]}
8... Bxf3 {[%clk 0:02:46.8]} 9. gxf3 {[%clk 0:02:44]} 9... Ne5 {[%clk
0:02:46.8]} 10. Qe2 {[%clk 0:02:39.9]} 10... Nxc4 {[%clk 0:02:46]} 11. dxc4
{[%clk 0:02:40.2]} 11... Nd7 {[%clk 0:02:43.2]} 12. Bd2 {[%clk 0:02:40.1]} 12...
Qb6 {[%clk 0:02:39.8]} 13. O-O-O {[%clk 0:02:39.6]} 13... Ne5 {[%clk 0:02:32]}
14. h5 {[%clk 0:02:37.1]} 14... Nc6 {[%clk 0:02:29.3]} 15. Kb1 {[%clk
0:02:28.8]} 15... O-O-O {[%clk 0:02:18.4]} 16. h6 {[%clk 0:02:28.7]} 16... Bf6
{[%clk 0:02:09.2]} 17. b3 {[%clk 0:02:27.3]} 17... e6 {[%clk 0:02:04.1]} 18. f4
{[%clk 0:02:26.4]} 18... Rhe8 {[%clk 0:01:57.9]} 19. Rh3 {[%clk 0:02:24.6]}
19... Kb8 {[%clk 0:01:53.3]} 20. Na4 {[%clk 0:02:04.5]} 20... Qc7 {[%clk
0:01:50.6]} 21. c3 {[%clk 0:01:56.1]} 21... b6 {[%clk 0:01:39.8]} 22. Rd3 {[%clk
0:01:55.9]} 22... d5 {[%clk 0:01:26.9]} 23. cxd5 {[%clk 0:01:48.9]} 23... exd5
{[%clk 0:01:25.4]} 24. e5 {[%clk 0:01:49.1]} 24... Be7 {[%clk 0:01:15.3]} 25.
Qf3 {[%clk 0:01:48.5]} 25... b5 {[%clk 0:01:04]} 26. Nb2 {[%clk 0:01:45.7]}
26... d4 {[%clk 0:00:59.3]} 27. c4 {[%clk 0:01:41.9]} 27... b4 {[%clk
0:00:44.4]} 28. Re1 {[%clk 0:01:25.6]} 28... Bf8 {[%clk 0:00:43.5]} 29. Qd1
{[%clk 0:01:19.6]} 29... Ne7 {[%clk 0:00:35.6]} 30. Kc2 {[%clk 0:01:00.2]} 30...
Nf5 {[%clk 0:00:34.9]} 31. a3 {[%clk 0:00:59.8]} 31... a5 {[%clk 0:00:28.5]} 32.
axb4 {[%clk 0:00:56.6]} 32... axb4 {[%clk 0:00:29.4]} 33. Qa1 {[%clk 0:00:50.3]}
33... Kb7 {[%clk 0:00:29.4]} 34. Qa4 {[%clk 0:00:49.8]} 34... Qc6 {[%clk
0:00:24.1]} 35. Rh3 {[%clk 0:00:37.6]} 35... Ra8 {[%clk 0:00:22.4]} 36. Qxc6+
{[%clk 0:00:37.2]} 36... Kxc6 {[%clk 0:00:23.3]} 37. Rhh1 {[%clk 0:00:36.3]}
37... Bxh6 {[%clk 0:00:21]} 38. Ra1 {[%clk 0:00:24.6]} 38... Rec8 {[%clk
0:00:12.5]} 39. Nd3 {[%clk 0:00:24.6]} 39... Kb6 {[%clk 0:00:06.4]} 40. Kb2
{[%clk 0:00:14.3]} 40... Rxa1 {[%clk 0:00:05.3]} 41. Rxa1 {[%clk 0:00:12.8]}
41... Bf8 {[%clk 0:00:04.2]} 42. Re1 {[%clk 0:00:07.1]} 42... Re8 {[%clk
0:00:02.5]} 43. f3 {[%clk 0:00:05.3]} 43... h5 {[%clk 0:00:02.9]} 44. Nf2 {[%clk
0:00:05.7]} 44... Be7 {[%clk 0:00:02.3]} 45. Ne4 {[%clk 0:00:05.4]} 45... Ra8
{[%clk 0:00:02]} 46. Rh1 {[%clk 0:00:05.5]} 46... Kc6 {[%clk 0:00:02.3]} 47. Be1
{[%clk 0:00:05.7]} 47... Kd7 {[%clk 0:00:01.9]} 48. Bf2 {[%clk 0:00:05.4]} 48...
Ke6 {[%clk 0:00:02.2]} 49. Be1 {[%clk 0:00:04.9]} 49... Rh8 {[%clk 0:00:02.1]}
50. Bf2 {[%clk 0:00:04.9]} 50... h4 {[%clk 0:00:02.6]} 51. Ra1 {[%clk
0:00:04.8]} 51... h3 {[%clk 0:00:01.8]} 52. Ra6+ {[%clk 0:00:05.1]} 52... Kd7
{[%clk 0:00:02.3]} 53. Ra7+ {[%clk 0:00:03.9]} 53... Kc6 {[%clk 0:00:01.6]} 54.
Bg1 {[%clk 0:00:02.8]} 54... h2 {[%clk 0:00:01.6]} 55. Bxh2 {[%clk 0:00:03.4]}
55... Rxh2+ {[%clk 0:00:02.2]} 56. Kc1 {[%clk 0:00:03.6]} 56... Bd8 {[%clk
0:00:02.5]} 57. Rxf7 {[%clk 0:00:03.4]} 57... Ne3 {[%clk 0:00:02.5]} 58. e6
{[%clk 0:00:03.8]} 58... Rc2+ {[%clk 0:00:02.5]} 59. Kb1 {[%clk 0:00:03.8]}
59... Re2 {[%clk 0:00:02.5]} 60. Rd7 {[%clk 0:00:03.9]} 60... Bh4 {[%clk
0:00:01.7]} 61. Rd6+ {[%clk 0:00:03.9]} 61... Kc7 {[%clk 0:00:01.7]} 62. Rd7+
{[%clk 0:00:04.6]} 62... Kc8 {[%clk 0:00:02.2]} 63. Nd6+ {[%clk 0:00:04.9]}
63... Kb8 {[%clk 0:00:02.1]} 64. Rb7+ {[%clk 0:00:05]} 64... Ka8 {[%clk
0:00:02.5]} 65. e7 {[%clk 0:00:02.6]} 65... Bxe7 {[%clk 0:00:01.9]} 66. Rxe7
{[%clk 0:00:03.5]} 66... Re1+ {[%clk 0:00:02.6]} 67. Ka2 {[%clk 0:00:03.8]}
67... Re2+ {[%clk 0:00:02.8]} 68. Kb1 {[%clk 0:00:03.7]} 68... d3 {[%clk
0:00:03.3]} 69. Re8+ {[%clk 0:00:03.9]} 69... Ka7 {[%clk 0:00:03.8]} 70. Re7+
{[%clk 0:00:03.9]} 70... Kb6 {[%clk 0:00:04.3]} 71. Nc8+ {[%clk 0:00:04.5]}
71... Kc6 {[%clk 0:00:04.5]} 72. Na7+ {[%clk 0:00:04.7]} 72... Kb6 {[%clk
0:00:04.5]} 73. Nc8+ {[%clk 0:00:04.9]} 73... Kc6 {[%clk 0:00:03]} 74. Na7+
{[%clk 0:00:04.8]} 74... Kd6 {[%clk 0:00:03.2]} 75. Nc8+ {[%clk 0:00:05.1]}
75... Kc6 {[%clk 0:00:03.8]} 1/2-1/2

[Event "Early-Titled-Tuesday-Blitz-January-30-2024"]
[Site "Chess.com"]
[Date "2024.01.30"]
[Round "8"]
[White "diamonds13"]
[Black "jaskol95"]
[Result "0-1"]
[WhiteElo "2357"]
[BlackElo "2540"]
[TimeControl "180+1"]
[EndTime "9:31:41 PST"]
[Termination "jaskol95 won by resignation"]

1. d4 {[%clk 0:02:53.5]} 1... d5 {[%clk 0:02:59.4]} 2. c4 {[%clk 0:02:52]} 2...
e5 {[%clk 0:02:59.7]} 3. dxe5 {[%clk 0:02:51.8]} 3... d4 {[%clk 0:03:00.2]} 4.
Nf3 {[%clk 0:02:51.6]} 4... Nc6 {[%clk 0:03:00.7]} 5. Nbd2 {[%clk 0:02:51.6]}
5... Nge7 {[%clk 0:02:58.1]} 6. g3 {[%clk 0:02:51]} 6... Ng6 {[%clk 0:02:58.3]}
7. a3 {[%clk 0:02:44]} 7... Ngxe5 {[%clk 0:02:56.4]} 8. Bg2 {[%clk 0:02:44.1]}
8... Nxf3+ {[%clk 0:02:36.1]} 9. Nxf3 {[%clk 0:02:42.4]} 9... Be7 {[%clk
0:02:36]} 10. b4 {[%clk 0:02:41.2]} 10... Bf6 {[%clk 0:02:31]} 11. Ra2 {[%clk
0:02:34.9]} 11... Be6 {[%clk 0:02:25]} 12. Qd3 {[%clk 0:02:19.6]} 12... O-O
{[%clk 0:02:20.6]} 13. Bf4 {[%clk 0:02:07.3]} 13... a6 {[%clk 0:02:08.6]} 14.
Rc2 {[%clk 0:02:05.7]} 14... Qd7 {[%clk 0:01:55.7]} 15. b5 {[%clk 0:02:02.4]}
15... Na5 {[%clk 0:01:55.2]} 16. Nd2 {[%clk 0:01:56]} 16... axb5 {[%clk
0:01:38.8]} 17. cxb5 {[%clk 0:01:55.5]} 17... c6 {[%clk 0:01:39.4]} 18. O-O
{[%clk 0:01:50.4]} 18... Rfe8 {[%clk 0:01:23.5]} 19. bxc6 {[%clk 0:01:39.3]}
19... Nxc6 {[%clk 0:01:17.6]} 20. Ne4 {[%clk 0:01:22.2]} 20... Be7 {[%clk
0:01:11.6]} 21. Nc5 {[%clk 0:01:16.1]} 21... Bxc5 {[%clk 0:01:07.6]} 22. Rxc5
{[%clk 0:01:16.1]} 22... g6 {[%clk 0:00:50.7]} 23. Rd1 {[%clk 0:01:11.3]} 23...
Bf5 {[%clk 0:00:45.9]} 24. e4 {[%clk 0:00:57.8]} 24... dxe3 {[%clk 0:00:34.9]}
25. Qxd7 {[%clk 0:00:56.8]} 25... Bxd7 {[%clk 0:00:35]} 26. Bxe3 {[%clk
0:00:57.1]} 26... Bg4 {[%clk 0:00:32.6]} 27. Rb1 {[%clk 0:00:55.1]} 27... Rxa3
{[%clk 0:00:28.9]} 28. h3 {[%clk 0:00:55.5]} 28... Bc8 {[%clk 0:00:26.5]} 29. g4
{[%clk 0:00:46.6]} 29... Kg7 {[%clk 0:00:24.3]} 30. Bxc6 {[%clk 0:00:41.3]}
30... bxc6 {[%clk 0:00:24.3]} 31. Rxc6 {[%clk 0:00:41.7]} 31... Be6 {[%clk
0:00:19.5]} 32. g5 {[%clk 0:00:39]} 32... Rd8 {[%clk 0:00:17.3]} 33. Kh2 {[%clk
0:00:34.2]} 33... Rdd3 {[%clk 0:00:13.6]} 34. Re1 {[%clk 0:00:23.2]} 34... Ra2
{[%clk 0:00:12.5]} 35. Kg3 {[%clk 0:00:21.9]} 35... Kf8 {[%clk 0:00:12.6]} 36.
Rb6 {[%clk 0:00:19.3]} 36... Ke7 {[%clk 0:00:12.7]} 37. Rb7+ {[%clk 0:00:18.5]}
37... Kd6 {[%clk 0:00:13.2]} 38. h4 {[%clk 0:00:17.3]} 38... Ra4 {[%clk
0:00:13.3]} 39. Rb6+ {[%clk 0:00:16.9]} 39... Kc7 {[%clk 0:00:12.4]} 40. Rxe6
{[%clk 0:00:14.2]} 40... fxe6 {[%clk 0:00:12.2]} 41. Rc1+ {[%clk 0:00:14.6]}
41... Kd7 {[%clk 0:00:12.3]} 42. Rb1 {[%clk 0:00:14.2]} 42... Rc3 {[%clk
0:00:11.6]} 43. Rb7+ {[%clk 0:00:13]} 43... Rc7 {[%clk 0:00:12.1]} 44. Rb6
{[%clk 0:00:12.9]} 44... Ke7 {[%clk 0:00:10.7]} 45. Kg2 {[%clk 0:00:11.9]} 45...
Rxh4 {[%clk 0:00:10.2]} 46. f4 {[%clk 0:00:11.5]} 46... Rc3 {[%clk 0:00:06.3]}
47. Bd4 {[%clk 0:00:09.4]} 47... Rd3 {[%clk 0:00:05.7]} 48. Be5 {[%clk
0:00:08.7]} 48... Rg4+ {[%clk 0:00:04.6]} 49. Kf2 {[%clk 0:00:08.3]} 49... Rgg3
{[%clk 0:00:04.9]} 50. Rb7+ {[%clk 0:00:07.9]} 50... Kd8 {[%clk 0:00:05.5]} 51.
Rxh7 {[%clk 0:00:07.9]} 51... Rgf3+ {[%clk 0:00:05.7]} 52. Ke2 {[%clk
0:00:08.2]} 52... Rfe3+ {[%clk 0:00:06.3]} 53. Kf2 {[%clk 0:00:08.5]} 53... Rf3+
{[%clk 0:00:05.3]} 54. Kg2 {[%clk 0:00:09]} 54... Rg3+ {[%clk 0:00:05.4]} 55.
Kh2 {[%clk 0:00:09.4]} 55... Rge3 {[%clk 0:00:04.4]} 56. Rh8+ {[%clk 0:00:06]}
56... Kd7 {[%clk 0:00:04.4]} 57. Rh7+ {[%clk 0:00:06.6]} 57... Kc6 {[%clk
0:00:05]} 58. Rc7+ {[%clk 0:00:06.5]} 58... Kd5 {[%clk 0:00:05.4]} 59. Rc2
{[%clk 0:00:06.8]} 59... Ke4 {[%clk 0:00:05.2]} 60. Rg2 {[%clk 0:00:05.6]} 60...
Kf5 {[%clk 0:00:05.6]} 61. Rf2 {[%clk 0:00:05.5]} 61... Rh3+ {[%clk 0:00:05.7]}
62. Kg2 {[%clk 0:00:05.3]} 62... Rhg3+ {[%clk 0:00:06.2]} 63. Kf1 {[%clk
0:00:05.8]} 63... Rd1+ {[%clk 0:00:06.3]} 64. Ke2 {[%clk 0:00:06.2]} 64... Rgd3
{[%clk 0:00:07]} 65. Rg2 {[%clk 0:00:04.9]} 65... R3d2+ {[%clk 0:00:06.2]} 66.
Kf3 {[%clk 0:00:04.6]} 66... Rf1+ {[%clk 0:00:06.7]} 67. Kg3 {[%clk 0:00:05.1]}
67... Rxg2+ {[%clk 0:00:07.1]} 68. Kxg2 {[%clk 0:00:05.5]} 68... Rxf4 {[%clk
0:00:07.8]} 69. Bxf4 {[%clk 0:00:06]} 69... Kxf4 {[%clk 0:00:08.4]} 70. Kf2
{[%clk 0:00:06.6]} 70... Kxg5 {[%clk 0:00:08.9]} 71. Kg3 {[%clk 0:00:07.2]}
71... Kf5 {[%clk 0:00:09.6]} 72. Kf3 {[%clk 0:00:08]} 72... g5 {[%clk
0:00:10.3]} 73. Kg3 {[%clk 0:00:08.6]} 73... e5 {[%clk 0:00:11]} 74. Kf3 {[%clk
0:00:09.2]} 74... e4+ {[%clk 0:00:11.7]} 75. Ke3 {[%clk 0:00:09.9]} 75... g4
{[%clk 0:00:12.3]} 76. Ke2 {[%clk 0:00:10.3]} 76... Kf4 {[%clk 0:00:13]} 77. Kf2
{[%clk 0:00:11.1]} 77... e3+ {[%clk 0:00:13.8]} 78. Kg2 {[%clk 0:00:11.8]} 78...
g3 {[%clk 0:00:14]} 79. Kg1 {[%clk 0:00:11.6]} 79... Kf3 {[%clk 0:00:14.6]} 80.
Kf1 {[%clk 0:00:12.1]} 80... e2+ {[%clk 0:00:13.3]} 81. Ke1 {[%clk 0:00:12.1]}
81... g2 {[%clk 0:00:13.8]} 0-1